bitfinex/quotes_SOLUSD_20250803
["timestamp","ask_amount","ask_price","bid_price","bid_amount"]
[1754254081765,4.84754555,161.47,161.46,43.94]
[1754254081968,4.63701132,161.47,161.46,43.94]
[1754254082140,4.63701132,161.47,161.46,53.33071281]
[1754254082346,4.84756386,161.47,161.46,53.33071281]
[1754254082577,4.85031768,161.47,161.46,53.33071281]
[1754254082742,4.85031768,161.47,161.46,49.96345318]
[1754254084687,4.85031768,161.47,161.46,53.3516396]
[1754254085156,0.21055254,161.47,161.46,53.3516396]
[1754254085358,0.73,161.53,161.46,53.97098804]
[1754254085359,4.17914177,161.52,161.46,53.97098804]
[1754254085560,4.64297609,161.51,161.49,9.4116396]
[1754254085863,4.17914177,161.52,161.5,43.88]
[1754254086169,4.64297041,161.51,161.5,43.88]
[1754254087961,4.85352033,161.51,161.5,43.88]
[1754254089675,5.55352033,161.51,161.5,43.16]
[1754254089982,5.34297041,161.51,161.5,43.16]
[1754254090284,5.55352033,161.51,161.5,43.16]
[1754254090487,4.85352033,161.51,161.5,43.16]
[1754254095385,4.64297041,161.51,161.5,43.16]
[1754254095588,4.85343931,161.51,161.5,43.16]
[1754254099696,4.85343931,161.51,161.5,43.84]
[1754254100072,4.85343931,161.51,161.5,43.16]
[1754254103202,4.85343931,161.51,161.5,53.2516396]
[1754254103401,0.2104689,161.51,161.5,53.2516396]
[1754254103601,0.03,161.53,161.5,53.87083464]
[1754254103777,0.03,161.53,161.52,9.4116396]
[1754254103977,4.66654376,161.53,161.52,52.5516396]
[1754254104211,4.66654376,161.53,161.52,53.2316396]
[1754254104715,0.03,161.53,161.52,49.83804913]
[1754254106399,0.03,161.53,161.52,67.24185147]
[1754254106709,0.03,161.53,161.52,70.625489]
[1754254107992,0.24049503,161.53,161.52,70.625489]
[1754254109914,0.24049503,161.53,161.52,73.107417]
[1754254110409,0.24049503,161.53,161.52,69.14]
[1754254110610,0.96049503,161.53,161.52,78.54168666]
[1754254111012,0.03,161.53,161.52,78.54168666]
[1754254111211,0.24041666,161.53,161.52,78.54168666]
[1754254113308,0.24041666,161.53,161.52,69.14]
[1754254121443,0.24041666,161.53,161.52,69.82]
[1754254121648,0.03,161.53,161.52,69.82]
[1754254121850,0.24042972,161.53,161.52,69.82]
[1754254123138,0.24042972,161.53,161.52,96.00637063]
[1754254123533,0.03,161.53,161.52,96.00637063]
[1754254123933,0.03,161.53,161.52,98.48829963]
[1754254128858,0.03,161.53,161.52,95.1037694]
[1754254133340,0.03,161.53,161.52,95.72288777]
[1754254134246,0.03,161.53,161.52,245.12288777]
[1754254134444,0.03,161.53,161.52,244.5037694]
[1754254134750,0.03,161.55,161.53,16.78468397]
[1754254134949,0.03,161.55,161.54,66.54088212]
[1754254135149,0.03,161.55,161.54,216.65088212]
[1754254135367,0.03,161.55,161.54,231.8968974]
[1754254136645,0.03,161.55,161.54,235.27761858]
[1754254136846,0.03,161.55,161.54,261.27761858]
[1754254137174,0.03,161.55,161.54,235.27761858]
[1754254137947,0.03,161.55,161.54,241.46803581]
[1754254138250,15.65465373,161.59,161.58,16.78468397]
[1754254138451,15.65465373,161.59,161.58,61.23357244]
[1754254138663,15.65465373,161.59,161.58,70.63145005]
[1754254139465,15.65465373,161.59,161.58,69.92145005]
[1754254140246,15.65465373,161.59,161.58,0.61888847]
[1754254140555,16.33465373,161.59,161.58,69.12]
[1754254140873,16.33465373,161.59,161.58,43.12]
[1754254142475,16.33465373,161.59,161.56,158.79787761]
[1754254142779,0.68,161.58,161.57,43.1]
[1754254143360,0.89033835,161.58,161.57,43.1]
[1754254145464,0.89033835,161.58,161.55,26.0]
[1754254145684,0.68,161.57,161.56,43.1]
[1754254147361,0.89033835,161.57,161.56,43.1]
[1754254152765,0.89033835,161.57,161.55,0.06]
[1754254152978,0.21033835,161.57,161.56,43.1]
[1754254153486,0.8903775,161.57,161.56,43.1]
[1754254153865,0.68,161.57,161.56,43.1]
[1754254155371,0.89038141,161.57,161.56,43.1]
[1754254163119,0.21038141,161.57,161.56,43.1]
[1754254163294,0.21038141,161.57,161.56,49.80715976]
[1754254164198,0.21038141,161.57,161.56,49.11715976]
[1754254169713,0.21038141,161.57,161.56,92.59184373]
[1754254170004,15.65465373,161.59,161.58,42.78468397]
[1754254170214,15.65465373,161.59,161.58,91.90184373]
[1754254170388,15.65465373,161.59,161.58,92.59184373]
[1754254170783,15.65465373,161.59,161.58,108.24649773]
[1754254173885,0.41039316,161.6,161.58,108.8653862]
[1754254174089,0.41039316,161.6,161.59,23.49184373]
[1754254174311,0.2,161.6,161.59,23.49184373]
[1754254174484,0.2,161.6,161.59,25.97269473]
[1754254175497,0.2,161.6,161.59,26.5915449]
[1754254176914,0.2,161.6,161.59,29.96621277]
[1754254180106,0.2,161.6,161.59,2.480851]
[1754254180312,0.9,161.6,161.59,11.87267863]
[1754254180622,0.9,161.6,161.59,52.47182763]
[1754254180792,1.11029922,161.6,161.59,52.47182763]
[1754254185422,0.2,161.6,161.59,96.59536177]
[1754254185628,0.2,161.6,161.59,99.07605877]
[1754254188124,0.2,161.6,161.59,248.47605877]
[1754254188429,0.2,161.6,161.59,247.8572086]
[1754254191514,0.03,161.61,161.6,16.78468397]
[1754254191706,0.03,161.61,161.6,36.90715111]
[1754254192120,0.03,161.61,161.6,39.38769411]
[1754254195337,0.03,161.61,161.6,29.27586648]
[1754254195830,0.03,161.61,161.6,29.99586648]
[1754254196414,0.03,161.61,161.6,29.27586648]
[1754254196822,0.03,161.61,161.6,178.67586648]
[1754254197043,0.03,161.61,161.6,178.0570546]
[1754254201750,0.7,161.61,161.6,178.0570546]
[1754254201924,0.7,161.61,161.6,194.960543]
[1754254202130,0.7,161.61,161.6,43.08]
[1754254202349,10.09182763,161.61,161.56,2.481467]
[1754254202655,6.01819549,161.58,161.57,43.08]
[1754254202942,0.58,161.58,161.57,43.08]
[1754254203154,0.79027314,161.58,161.57,43.08]
[1754254206445,0.21027314,161.58,161.57,43.08]
[1754254206616,0.79027314,161.58,161.57,43.08]
[1754254211356,10.19183083,161.58,161.57,43.08]
[1754254212333,0.79027314,161.58,161.57,43.08]
[1754254214743,0.21027314,161.58,161.57,43.08]
[1754254218767,10.19183083,161.58,161.57,43.08]
[1754254220553,10.19183083,161.58,161.56,0.06]
[1754254220735,9.98155769,161.57,161.56,0.06]
[1754254220940,9.40155769,161.57,161.56,0.06]
[1754254221171,9.61183083,161.57,161.56,0.06]
[1754254221752,0.21027314,161.57,161.56,0.06]
[1754254227850,6.80849452,161.57,161.56,0.06]
[1754254228181,6.59822138,161.57,161.56,0.06]
[1754254228549,6.80863151,161.57,161.56,0.06]
[1754254229476,0.21041013,161.57,161.56,0.74]
[1754254229681,0.21041013,161.57,161.56,6.75822138]
[1754254229887,0.03,161.61,161.56,6.75822138]
[1754254230188,0.03,161.61,161.57,6.69822138]
[1754254230500,0.03,161.61,161.59,6.01822138]
[1754254230657,0.03,161.61,161.6,9.39499267]
[1754254231148,0.03,161.61,161.6,10.07499267]
[1754254233476,0.24044278,161.61,161.6,10.07499267]
[1754254239778,0.03,161.61,161.6,10.07499267]
[1754254247174,4.66095773,161.61,161.6,10.07499267]
[1754254247689,4.66095773,161.61,161.6,0.68]
[1754254247995,4.66095773,161.61,161.6,10.07499267]
[1754254248361,4.87130652,161.61,161.6,10.07499267]
[1754254249081,0.24034879,161.61,161.6,10.07499267]
[1754254252697,0.24034879,161.61,161.6,6.69298462]
[1754254253199,4.8703975,161.61,161.6,6.69298462]
[1754254254595,0.24034879,161.61,161.6,6.69298462]
[1754254255795,4.87020868,161.61,161.6,6.69298462]
[1754254256420,4.86991441,161.61,161.6,6.69298462]
[1754254256794,0.24034879,161.61,161.6,6.69298462]
[1754254256986,4.87007955,161.61,161.6,6.01298462]
[1754254257196,4.87007955,161.61,161.6,6.71298462]
[1754254257690,0.24034879,161.61,161.6,0.7]
[1754254257922,4.87023497,161.61,161.6,6.71298462]
[1754254259316,0.24034879,161.61,161.6,6.71298462]
[1754254259822,0.03,161.61,161.6,6.71298462]
[1754254260023,0.24035531,161.61,161.6,6.71298462]
[1754254262319,0.24035531,161.61,161.6,6.01298462]
[1754254262519,4.87073607,161.61,161.59,0.7]
[1754254262720,4.87073607,161.61,161.6,6.01298462]
[1754254262721,0.03,161.61,161.6,6.01298462]
[1754254263021,0.03,161.61,161.58,49.17298462]
[1754254263022,5.24062873,161.61,161.58,49.17298462]
[1754254263201,0.61,161.61,161.58,49.17298462]
[1754254263402,0.61,161.61,161.58,49.87298462]
[1754254263602,4.63094178,161.6,161.58,49.87298462]
[1754254263844,0.61,161.61,161.58,49.87298462]
[1754254264006,4.63102445,161.6,161.58,49.87298462]
[1754254264201,0.03,161.61,161.58,49.17298462]
[1754254264527,0.03,161.61,161.6,6.01298462]
[1754254264734,4.66084923,161.61,161.6,6.01298462]
[1754254264944,4.66084923,161.61,161.6,6.71298462]
[1754254265233,0.03,161.61,161.6,6.71298462]
[1754254265448,4.66127764,161.61,161.6,6.71298462]
[1754254266028,4.66144298,161.61,161.6,6.71298462]
[1754254266327,5.24144298,161.61,161.58,43.16]
[1754254266505,4.63144298,161.6,161.58,43.16]
[1754254266709,0.21036445,161.6,161.58,43.16]
[1754254266906,0.21036445,161.6,161.58,43.86]
[1754254267214,0.21036445,161.6,161.58,49.87298462]
[1754254270212,4.63563284,161.59,161.58,49.87298462]
[1754254270926,4.84597587,161.59,161.58,49.87298462]
[1754254274539,0.21036445,161.59,161.58,49.87298462]
[1754254275141,4.64313353,161.59,161.58,49.87298462]
[1754254275305,4.85349406,161.59,161.58,49.87298462]
[1754254277809,0.21036053,161.59,161.58,49.87298462]
[1754254278013,4.85468015,161.59,161.58,63.23600762]
[1754254279127,4.85468015,161.59,161.58,57.223023]
[1754254285432,4.85468015,161.59,161.58,43.16]
[1754254285648,4.85468015,161.59,161.58,43.86]
[1754254285845,4.64431962,161.59,161.58,48.71468]
[1754254286029,4.85467885,161.59,161.58,48.71468]
[1754254287248,4.85467885,161.59,161.58,48.01468]
[1754254287630,4.85467885,161.59,161.58,48.71468]
[1754254288353,5.43467885,161.59,161.58,48.01468]
[1754254288553,5.43467885,161.59,161.58,43.16]
[1754254288730,4.85467885,161.59,161.58,43.16]
[1754254290448,10.86766347,161.59,161.58,43.16]
[1754254290650,15.62705119,161.59,161.58,0.06]
[1754254290950,15.41669196,161.59,161.58,0.06]
[1754254291253,15.62705641,161.59,161.58,0.06]
[1754254292229,15.62527368,161.59,161.58,0.06]
[1754254294334,9.03228906,161.59,161.58,0.76]
[1754254294548,0.03,161.6,161.58,6.77298462]
[1754254294734,4.63665639,161.59,161.58,9.792289]
[1754254295047,4.84702084,161.59,161.58,9.792289]
[1754254296565,4.63665639,161.59,161.58,9.792289]
[1754254296741,0.03,161.6,161.58,19.18898471]
[1754254297063,0.03,161.6,161.59,0.7]
[1754254297260,4.66657589,161.6,161.59,0.7]
[1754254299078,4.66657589,161.6,161.59,10.09669571]
[1754254299761,4.66657589,161.6,161.59,14.063022]
[1754254301465,4.66657589,161.6,161.59,0.7]
[1754254301678,4.87694034,161.6,161.59,19.309844]
[1754254303063,4.66657589,161.6,161.59,19.309844]
[1754254303265,4.87694034,161.6,161.59,19.309844]
[1754254305358,4.66657589,161.6,161.59,19.309844]
[1754254305562,4.66657589,161.6,161.59,18.609844]
[1754254305779,14.853623,161.6,161.58,0.06]
[1754254305965,14.0332716,161.59,161.58,0.06]
[1754254306557,14.243623,161.59,161.58,0.06]
[1754254312457,14.823623,161.59,161.58,0.06]
[1754254313162,18.78696731,161.59,161.58,0.06]
[1754254313459,18.99732784,161.59,161.58,0.06]
[1754254322099,14.24363213,161.59,161.58,0.77]
[1754254322609,14.23974137,161.59,161.58,0.77]
[1754254324500,14.23974137,161.59,161.58,0.06]
[1754254325101,14.81974137,161.59,161.58,0.06]
[1754254325295,18.98962962,161.59,161.58,0.06]
[1754254325599,18.77920512,161.59,161.58,0.06]
[1754254325797,18.40963876,161.59,161.58,0.06]
[1754254326002,18.41069063,161.59,161.58,0.06]
[1754254328395,4.84410667,161.59,161.58,0.77]
[1754254328609,4.63367303,161.59,161.58,0.77]
[1754254328923,4.84410667,161.59,161.58,0.77]
[1754254329116,4.63367303,161.59,161.58,0.77]
[1754254329416,0.03,161.6,161.58,0.77]
[1754254329713,0.21043364,161.59,161.58,0.77]
[1754254342025,14.24019967,161.59,161.58,0.06]
[1754254342320,14.02976603,161.59,161.58,0.06]
[1754254342715,10.86045867,161.59,161.58,0.06]
[1754254344603,4.84349873,161.59,161.58,0.06]
[1754254344803,14.24453006,161.59,161.58,0.06]
[1754254348208,12.45523157,161.59,161.58,0.06]
[1754254351527,3.05420024,161.59,161.58,0.78]
[1754254351747,2.84377183,161.59,161.58,0.78]
[1754254351916,3.05413628,161.59,161.58,0.78]
[1754254353034,0.21036445,161.59,161.58,0.78]
[1754254353227,0.21036445,161.59,161.58,10.18103133]
[1754254353415,0.03,161.6,161.58,10.18103133]
[1754254353612,0.24036445,161.6,161.59,0.72]
[1754254353810,0.03,161.6,161.59,0.72]
[1754254354041,0.24036445,161.6,161.59,0.72]
[1754254356919,0.24036445,161.6,161.59,13.235167]
[1754254363960,0.03,161.6,161.59,13.235167]
[1754254364330,0.24035662,161.6,161.59,13.235167]
[1754254365860,0.24035662,161.6,161.59,19.24910294]
[1754254366157,0.03,161.6,161.59,36.65263708]
[1754254367054,0.03,161.6,161.59,66.8968826]
[1754254367281,0.03,161.6,161.59,36.65263708]
[1754254368736,0.03,161.6,161.59,40.03064451]
[1754254372772,0.24029922,161.6,161.59,40.03064451]
[1754254379081,0.24029922,161.6,161.59,13.13401717]
[1754254379286,0.82029922,161.6,161.59,55.575167]
[1754254379581,0.61,161.6,161.59,55.575167]
[1754254379803,0.03,161.6,161.59,55.575167]
[1754254380350,0.24029922,161.6,161.59,55.575167]
[1754254381698,0.03,161.6,161.59,55.575167]
[1754254381868,0.24029922,161.6,161.59,55.575167]
[1754254384493,0.24029922,161.6,161.59,82.42179434]
[1754254384879,0.03,161.6,161.59,82.42179434]
[1754254386660,0.03,161.6,161.59,72.35985097]
[1754254386864,0.61,161.6,161.59,55.575167]
[1754254387067,10.00194337,161.6,161.59,43.06]
[1754254387313,0.61,161.6,161.59,43.06]
[1754254387465,0.82033835,161.6,161.59,43.06]
[1754254387671,0.24033835,161.6,161.59,43.06]
[1754254389177,9.63228172,161.6,161.59,43.06]
[1754254400879,9.63228172,161.6,161.59,43.75]
[1754254407385,0.24033835,161.6,161.59,43.75]
[1754254408612,0.24033835,161.6,161.59,43.06]
[1754254408787,14.2681444,161.6,161.59,43.06]
[1754254408993,14.63780605,161.6,161.59,43.06]
[1754254409392,14.84815745,161.6,161.59,43.06]
[1754254409794,4.87621408,161.6,161.59,43.06]
[1754254410086,14.26815745,161.6,161.59,43.06]
[1754254411594,14.05780605,161.6,161.59,43.06]
[1754254411801,14.26816658,161.6,161.59,43.06]
[1754254414620,14.26816658,161.6,161.59,43.75]
[1754254414798,0.24036053,161.6,161.59,43.75]
[1754254414998,0.03,161.6,161.59,43.75]
[1754254415214,0.24037489,161.6,161.59,43.75]
[1754254416112,4.87823713,161.6,161.59,43.75]
[1754254419119,0.24037489,161.6,161.59,43.75]
[1754254420020,0.24037489,161.6,161.59,43.06]
[1754254420021,14.27853477,161.6,161.59,43.06]
[1754254420319,14.64815988,161.6,161.59,43.06]
[1754254420524,14.85851128,161.6,161.59,43.06]
[1754254420829,14.27851128,161.6,161.59,43.06]
[1754254423506,14.27851128,161.6,161.59,43.75]
[1754254423715,14.06815988,161.6,161.59,43.75]
[1754254423920,14.27851128,161.6,161.59,43.75]
[1754254427504,14.27851128,161.6,161.59,43.06]
[1754254432342,4.88017168,161.6,161.59,43.77]
[1754254446150,4.88379239,161.6,161.59,43.77]
[1754254446946,10.89960108,161.6,161.59,43.77]
[1754254447820,4.88379239,161.6,161.59,43.77]
[1754254448955,4.88411174,161.6,161.59,43.77]
[1754254449252,4.85486244,161.6,161.59,43.77]
[1754254456857,0.2111021,161.6,161.59,49.78580869]
[1754254457059,0.2111021,161.6,161.59,49.815808]
[1754254457233,0.0007507,161.6,161.59,49.815808]
[1754254459265,4.64335961,161.6,161.59,49.815808]
[1754254460170,0.0007507,161.6,161.59,49.815808]
[1754254461569,0.21111515,161.6,161.59,49.815808]
[1754254465950,4.8514143,161.6,161.59,43.77]
[1754254466445,0.21111515,161.6,161.59,43.77]
[1754254466644,4.85115198,161.6,161.59,43.77]
[1754254468658,4.85117923,161.6,161.59,43.77]
[1754254470273,0.21111515,161.6,161.59,43.77]
[1754254470468,4.8509658,161.6,161.59,43.77]
[1754254472663,4.8509658,161.6,161.59,43.06]
[1754254473267,4.8509658,161.6,161.59,43.77]
[1754254473783,4.8509658,161.6,161.59,43.06]
[1754254474285,4.8509658,161.6,161.59,43.12]
[1754254474848,4.8509658,161.6,161.59,43.83]
[1754254475251,4.8509658,161.6,161.59,43.12]
[1754254475880,4.8509658,161.6,161.59,43.83]
[1754254476906,4.8509658,161.6,161.59,43.12]
[1754254477057,4.8509658,161.6,161.59,43.83]
[1754254478169,11.44677449,161.6,161.59,0.06]
[1754254478480,11.44677449,161.6,161.59,43.1]
[1754254478694,11.23641004,161.6,161.59,0.06]
[1754254478894,11.44674839,161.6,161.59,0.06]
[1754254479200,15.62354108,161.6,161.59,0.06]
[1754254479570,15.41320273,161.6,161.59,0.06]
[1754254479787,15.62354108,161.6,161.59,0.06]
[1754254481708,15.41320273,161.6,161.59,0.06]
[1754254482081,15.62356065,161.6,161.59,0.06]
[1754254482602,15.41320273,161.6,161.59,0.06]
[1754254482786,15.62356065,161.6,161.59,0.06]
[1754254483374,15.62356065,161.6,161.58,0.06]
[1754254483375,56.47147938,161.6,161.57,0.06]
[1754254483575,6.01580869,161.58,161.57,0.06]
[1754254483879,31.61532481,161.58,161.57,0.06]
[1754254484077,32.19532481,161.58,161.57,0.06]
[1754254484295,58.40568273,161.58,161.57,0.06]
[1754254486082,41.04099876,161.58,161.57,0.06]
[1754254486288,41.03420911,161.58,161.57,0.06]
[1754254486611,41.40385119,161.58,161.57,0.06]
[1754254486796,41.6142548,161.58,161.57,0.06]
[1754254487111,15.0342548,161.58,161.57,0.06]
[1754254487418,10.65384815,161.58,161.57,0.78]
[1754254487720,10.86425176,161.58,161.57,0.78]
[1754254493495,4.84844307,161.58,161.57,0.78]
[1754254494007,0.0007507,161.6,161.57,0.78]
[1754254494205,4.62893814,161.59,161.57,0.78]
[1754254494402,0.0007507,161.6,161.57,6.79580869]
[1754254494704,0.21041797,161.59,161.57,6.79580869]
[1754254494905,0.21041797,161.59,161.58,0.72]
[1754254495796,0.21041797,161.59,161.58,6.73580869]
[1754254496002,0.21041797,161.59,161.58,6.01580869]
[1754254496198,0.21041797,161.59,161.58,0.72]
[1754254496408,0.21041797,161.59,161.58,6.73580869]
[1754254496605,0.24041797,161.59,161.58,6.73580869]
[1754254496806,0.24041797,161.59,161.58,10.11698846]
[1754254497291,0.03,161.59,161.58,10.11698846]
[1754254497490,0.24039055,161.59,161.58,10.11698846]
[1754254499615,0.24039055,161.59,161.58,12.59814746]
[1754254502196,0.03,161.59,161.58,29.38283143]
[1754254504837,0.03,161.59,161.58,45.98584297]
[1754254504994,0.03,161.59,161.58,55.38283143]
[1754254507615,0.24032531,161.59,161.58,29.38283143]
[1754254509028,0.24032531,161.59,161.58,19.98584297]
[1754254509237,0.24032531,161.59,161.58,29.38283143]
[1754254512741,0.03,161.59,161.58,29.38283143]
[1754254516608,0.03,161.59,161.58,25.99946331]
[1754254517030,0.24031226,161.59,161.58,25.99946331]
[1754254518038,0.24031226,161.59,161.58,2.481159]
[1754254522938,0.24031226,161.59,161.58,3.201159]
[1754254526643,0.24031226,161.59,161.58,26.61835178]
[1754254526845,0.0007507,161.6,161.59,16.78468397]
[1754254527052,0.0007507,161.6,161.59,66.53830431]
[1754254528839,0.0007507,161.6,161.59,72.39831466]
[1754254531852,0.0007507,161.6,161.59,104.58681642]
[1754254532065,0.03,161.61,161.59,237.37975011]
[1754254532255,0.2,161.62,161.59,237.37975011]
[1754254532256,0.2,161.62,161.61,42.78468397]
[1754254532472,0.2,161.62,161.61,95.19761766]
[1754254532665,0.2,161.62,161.61,95.91761766]
[1754254533430,0.03,161.63,161.61,95.91761766]
[1754254533635,0.03,161.63,161.62,27.51635296]
[1754254533949,0.03,161.63,161.62,33.70370601]
[1754254534937,18.9670997,161.68,161.62,33.70370601]
[1754254534938,18.9670997,161.68,161.66,42.78468397]
[1754254535141,18.9670997,161.68,161.67,70.5361616]
[1754254535527,0.1,161.68,161.67,70.5361616]
[1754254536362,0.21028618,161.71,161.68,16.78468397]
[1754254536555,0.21028618,161.71,161.7,9.39293369]
[1754254537161,0.21028618,161.71,161.7,10.11293369]
[1754254537940,0.21028618,161.71,161.7,13.14032436]
[1754254538356,0.1,161.75,161.7,13.14032436]
[1754254538554,0.1,161.75,161.71,61.14307491]
[1754254538755,0.1,161.75,161.73,9.39293369]
[1754254538955,0.1,161.75,161.74,43.02]
[1754254539262,0.81,161.75,161.74,43.02]
[1754254539446,0.1,161.75,161.74,43.02]
[1754254540951,0.81,161.75,161.74,43.02]
[1754254542553,10.20293369,161.75,161.67,1.33854394]
[1754254542751,0.71,161.74,161.67,10.01147763]
[1754254543076,9.39293369,161.7,161.68,43.04]
[1754254543274,0.71,161.69,161.68,43.04]
[1754254543567,0.82935454,161.69,161.68,43.04]
[1754254544536,0.11935454,161.69,161.68,43.04]
[1754254545241,0.80935454,161.69,161.68,43.04]
[1754254546372,10.20228823,161.69,161.68,43.04]
[1754254548060,10.08293369,161.69,161.68,43.04]
[1754254548263,10.24317227,161.69,161.68,43.04]
[1754254549989,10.24317227,161.69,161.64,18.60292]
[1754254550281,0.69,161.68,161.66,43.04]
[1754254550575,9.39293369,161.67,161.66,43.04]
[1754254550865,10.08293369,161.67,161.66,43.04]
[1754254551069,0.16023858,161.68,161.66,43.04]
[1754254551256,10.08293369,161.67,161.66,43.04]
[1754254551459,10.24317227,161.67,161.66,43.04]
[1754254556583,9.55317227,161.67,161.66,43.04]
[1754254557869,0.16023858,161.67,161.66,43.73]
[1754254558277,9.39293369,161.69,161.66,43.73]
[1754254558478,0.14184077,161.68,161.66,43.04]
[1754254558677,0.14184077,161.68,161.67,0.69]
[1754254561080,10.22477446,161.68,161.63,0.69]
[1754254561293,9.39293369,161.66,161.64,43.1]
[1754254561500,9.39293369,161.66,161.64,53.182933]
[1754254562705,9.39293369,161.67,161.65,0.69]
[1754254562907,9.53477446,161.68,161.66,43.1]
[1754254563082,9.53477446,161.68,161.66,43.79]
[1754254563471,9.39293369,161.67,161.66,43.1]
[1754254563879,9.54305347,161.67,161.66,43.1]
[1754254564085,0.15011978,161.67,161.66,43.79]
[1754254564301,9.39293369,161.68,161.66,43.79]
[1754254564504,0.15011978,161.67,161.66,43.1]
[1754254564806,0.15011978,161.67,161.66,69.27761766]
[1754254565309,0.03,161.69,161.66,69.96761766]
[1754254565601,0.18011978,161.69,161.67,0.69]
[1754254565801,0.18011978,161.69,161.68,43.12]
[1754254566201,0.18011978,161.69,161.68,43.81]
[1754254566504,9.57305347,161.69,161.68,43.12]
[1754254566997,9.57305347,161.69,161.68,43.81]
[1754254566998,0.18011978,161.69,161.68,43.81]
[1754254570383,0.18011978,161.69,161.68,53.202934]
[1754254571494,0.18011978,161.69,161.68,43.12]
[1754254572286,0.18011978,161.69,161.68,53.202933]
[1754254576515,0.03,161.69,161.68,53.202933]
[1754254577916,0.03,161.69,161.68,43.81]
[1754254579399,0.03,161.69,161.68,53.20293369]
[1754254580502,0.03,161.69,161.68,69.98761766]
[1754254581021,0.03,161.69,161.68,95.98761766]
[1754254581606,0.03,161.69,161.68,102.17267456]
[1754254583102,0.03,161.69,161.68,76.17267456]
[1754254583700,0.03,161.69,161.68,76.23267456]
[1754254586418,0.03,161.69,161.68,225.63267456]
[1754254587020,0.03,161.69,161.68,219.44761766]
[1754254587494,0.03,161.69,161.68,70.04761766]
[1754254587691,0.03,161.69,161.68,70.66612335]
[1754254588120,0.03,161.69,161.68,27.54612335]
[1754254588308,0.03,161.69,161.68,95.89612335]
[1754254588614,0.03,161.69,161.68,96.58612335]
[1754254590608,0.03,161.69,161.68,70.58612335]
[1754254590806,0.03,161.69,161.68,76.77118025]
[1754254591897,0.03,161.71,161.7,16.78468397]
[1754254592123,0.03,161.71,161.7,79.28898053]
[1754254592340,0.03,161.71,161.7,79.97898053]
[1754254592504,0.03,161.71,161.7,86.16327242]
[1754254593933,0.03,161.71,161.7,70.58604684]
[1754254597036,0.03,161.71,161.7,76.77033873]
[1754254598520,0.03,161.71,161.7,86.16327242]
[1754254599853,0.1,161.75,161.74,16.78468397]
[1754254600045,0.1,161.75,161.74,69.9158939]
[1754254600353,0.1,161.75,161.74,70.6058939]
[1754254601355,0.1,161.75,161.74,89.1903759]
[1754254601655,0.1,161.75,161.74,95.37313835]
[1754254602423,0.83184077,161.82,161.78,16.78468397]
[1754254602672,0.83184077,161.82,161.81,26.17761766]
[1754254602965,0.69,161.82,161.81,69.29761766]
[1754254603339,0.69,161.82,161.79,10.01101886]
[1754254603544,0.69,161.82,161.8,43.12]
[1754254604064,9.39293369,161.81,161.79,18.581029]
[1754254604267,9.41605846,161.82,161.8,43.14]
[1754254604420,9.39293369,161.82,161.81,43.16]
[1754254604849,10.11293369,161.82,161.81,43.16]
[1754254605437,10.13605846,161.82,161.81,43.16]
[1754254608640,0.74312477,161.82,161.81,43.16]
[1754254608840,10.13605846,161.82,161.81,43.16]
[1754254612967,0.74312477,161.82,161.81,43.16]
[1754254613158,10.13605846,161.82,161.81,43.16]
[1754254615377,0.74312477,161.82,161.81,43.16]
[1754254615954,0.72,161.82,161.81,43.16]
[1754254616278,10.11293369,161.82,161.81,43.16]
[1754254616472,0.03,161.82,161.81,43.16]
[1754254616671,0.13726532,161.82,161.81,43.16]
[1754254618278,0.13726532,161.82,161.81,43.85]
[1754254620174,0.13726532,161.82,161.81,53.242934]
[1754254620548,0.13726532,161.82,161.81,43.16]
[1754254622365,0.13726532,161.82,161.81,45.637777]
[1754254623080,0.13726532,161.82,161.81,43.16]